fUST/lending_fUST_20250501
["ID","MTS","AMOUNT","RATE_DAILY","PERIOD"]
[359538797,1746096659976,-1390.66,0.00036712,12]
[359538799,1746096659986,-400.0,0.00036712,12]
[359538801,1746096659996,-553.06,0.00036712,12]
[359538803,1746096660006,-746.24,0.00036712,12]
[359538805,1746096660016,-734.35,0.00036712,12]
[359538807,1746096660026,-400.0,0.00036712,12]
[359538809,1746096660039,-400.0,0.00036712,12]
[359538811,1746096660049,-400.0,0.00036712,12]
[359538813,1746096660059,-400.0,0.00036712,12]
[359538815,1746096660070,-400.0,0.00036712,12]
[359538817,1746096660079,-400.0,0.00036712,12]
[359538818,1746096660089,-400.0,0.00036712,12]
[359538819,1746096660098,-1827.75,0.00036712,12]
[359538820,1746096660107,-422.31206175,0.00036712,12]
[359538821,1746096660117,-400.0,0.00036712,12]
[359538822,1746096660127,-400.0,0.00036712,12]
[359538823,1746096660137,-874.5,0.00036712,12]
[359538824,1746096660147,-400.0,0.00036712,12]
[359538825,1746096660157,-400.0,0.00036712,12]
[359538826,1746096660166,-400.0,0.00036712,12]
[359538827,1746096660176,-508.55602999,0.00036712,12]
[359538828,1746096660185,-400.0,0.00036712,12]
[359538829,1746096660197,-400.0,0.00036712,12]
[359538830,1746096660206,-400.0,0.00036712,12]
[359538832,1746096660217,-400.0,0.00036712,12]
[359538834,1746096660227,-1392.23,0.00036712,12]
[359538836,1746096660240,-663.52,0.00036712,12]
[359538838,1746096660251,-400.0,0.00036712,12]
[359538840,1746096660262,-2892.0,0.00036712,12]
[359538842,1746096660271,-400.0,0.00036712,12]
[359538844,1746096660281,-1206.57,0.00036712,12]
[359538846,1746096660291,-685.28,0.00036712,12]
[359538848,1746096660301,-1698.64,0.00036712,12]
[359538850,1746096660311,-930.63,0.00036712,12]
[359538852,1746096660320,-1999.55,0.00036712,12]
[359538854,1746096660329,-1385.06,0.00036712,12]
[359538856,1746096660339,-504.68059444,0.00036712,12]
[359538858,1746096660349,-993.2,0.00036712,12]
[359538860,1746096660359,-948.73,0.00036712,12]
[359538862,1746096660368,-400.0,0.00036712,12]
[359538877,1746096660495,-608.21,0.00036712,12]
[359538880,1746096660525,-400.0,0.00036712,12]
[359538882,1746096660536,-603.47,0.00036712,12]
[359538884,1746096660546,-404.65,0.00036712,12]
[359538886,1746096660555,-1600.93,0.00036712,12]
[359538888,1746096660565,-1512.75,0.00036712,12]
[359538890,1746096660575,-1068.22,0.00036712,12]
[359538892,1746096660585,-1715.43,0.00036712,12]
[359538894,1746096660595,-421.82,0.00036712,12]
[359538896,1746096660605,-400.0,0.00036712,12]
[359538899,1746096660616,-400.0,0.00036712,12]
[359538901,1746096660627,-1878.01,0.00036712,12]
[359538903,1746096660637,-520.36,0.00036712,7]
[359538905,1746096660647,-24151.59,0.00036712,12]
[359538907,1746096660657,-400.0,0.00036712,12]
[359538909,1746096660667,-967.92,0.00036712,12]
[359538911,1746096660677,-400.0,0.00036712,12]
[359538913,1746096660687,-618.55,0.00036712,12]
[359538915,1746096660697,-400.0,0.00036712,12]
[359538916,1746096660707,-400.0,0.00036712,12]
[359538919,1746096660719,-481.0111539,0.00036797,35]
[359538921,1746096660728,-2098.56,0.000368,30]
[359538923,1746096660739,-1050.0,0.00036904,5]
[359538925,1746096660750,-2000.0,0.00036975,4]
[359538926,1746096660759,-902.74,0.00036986,12]
[359538929,1746096660769,-400.0,0.00036986,12]
[359538930,1746096660779,-400.0,0.00036986,12]
[359538933,1746096660790,-400.0,0.00036986,12]
[359538935,1746096660801,-323.97936646,0.00036986,12]
[359538937,1746096660810,-590.31,0.00036986,12]
[359538939,1746096660820,-492.25,0.00036986,12]
[359538941,1746096660830,-400.0,0.00036986,12]
[359538943,1746096660839,-400.0,0.00036986,12]
[359538945,1746096660848,-801.35,0.00036986,12]
[359538947,1746096660858,-400.0,0.00036986,12]
[359538949,1746096660867,-400.0,0.00036986,12]
[359538951,1746096660876,-423.58,0.00036986,12]
[359538953,1746096660885,-432.05,0.00036986,12]
[359538955,1746096660894,-500.0,0.00036986,12]
[359538957,1746096660904,-400.0,0.00036986,12]
[359538959,1746096660913,-400.0,0.00036986,12]
[359538961,1746096660922,-428.13,0.00036986,12]
[359538963,1746096660932,-400.0,0.00036986,12]
[359538965,1746096660941,-400.0,0.00036986,12]
[359538967,1746096660950,-533.88,0.00036986,12]
[359538969,1746096660959,-400.0,0.00036986,12]
[359538971,1746096660969,-400.0,0.00036986,12]
[359538973,1746096660978,-634.75,0.00036986,12]
[359538974,1746096660987,-400.0,0.00036986,12]
[359538977,1746096660997,-400.0,0.00036986,12]
[359538979,1746096661006,-1060.8,0.00036986,12]
[359538981,1746096661016,-400.0,0.00036986,12]
[359538982,1746096661026,-400.0,0.00036986,12]
[359538985,1746096661039,-400.0,0.00036986,12]
[359538987,1746096661049,-5879.35,0.00036986,12]
[359538989,1746096661059,-400.0,0.00036986,12]
[359538991,1746096661069,-400.0,0.00036986,12]
[359538993,1746096661079,-400.0,0.00036986,12]
[359538995,1746096661089,-1242.1,0.00036986,12]
[359538997,1746096661098,-1506.06,0.00036986,12]
[359538999,1746096661108,-400.0,0.00036986,12]
[359539001,1746096661118,-400.0,0.00036986,12]
[359539003,1746096661128,-972.05,0.00036986,12]
[359539005,1746096661139,-400.0,0.00036986,12]
[359539007,1746096661149,-413.80968578,0.00036986,12]
[359539009,1746096661158,-437.91,0.00036986,12]
[359539011,1746096661168,-400.0,0.00036986,12]
[359539013,1746096661177,-400.0,0.00036986,12]
[359539015,1746096661187,-974.81,0.00036986,12]
[359539017,1746096661197,-400.0,0.00036986,12]
[359539019,1746096661207,-218.15837841,0.00036986,12]
[359539021,1746096661216,-922.16,0.00036986,12]
[359539023,1746096661226,-1363.87,0.00036986,12]
[359539025,1746096661236,-400.0,0.00036986,12]
[359539027,1746096661246,-227.82418737,0.00036986,12]
[359539029,1746096661255,-400.0,0.00036986,12]
[359539031,1746096661264,-1130.45,0.00036986,12]
[359539033,1746096661274,-1035.43,0.00036986,12]
[359539035,1746096661284,-400.0,0.00036986,12]
[359539037,1746096661293,-544.71,0.00036986,12]
[359539039,1746096661303,-400.0,0.00036986,12]
[359539041,1746096661312,-400.0,0.00036986,12]
[359539043,1746096661322,-999.06,0.00036986,12]
[359539046,1746096661331,-400.0,0.00036986,12]
[359539048,1746096661342,-487.72,0.00036986,12]
[359539050,1746096661352,-400.0,0.00036986,12]
[359539052,1746096661362,-400.0,0.00036986,12]
[359539054,1746096661372,-687.88,0.00036986,12]
[359539056,1746096661381,-386.71803996,0.00036986,12]
[359539058,1746096661391,-400.0,0.00036986,12]
[359539060,1746096661401,-400.0,0.00036986,12]
[359539062,1746096661411,-766.29,0.00036986,12]
[359539064,1746096661420,-400.0,0.00036986,12]
[359539066,1746096661430,-414.4,0.00036986,12]
[359539068,1746096661440,-437.32,0.00036986,12]
[359539070,1746096661449,-400.0,0.00036986,12]
[359539072,1746096661459,-400.0,0.00036986,12]
[359539074,1746096661468,-711.38,0.00036986,12]
[359539076,1746096661478,-780.7,0.00036986,12]
[359539078,1746096661488,-850.81,0.00036986,12]
[359539080,1746096661497,-1690.3,0.00036986,12]
[359539082,1746096661506,-400.0,0.00036986,12]
[359539084,1746096661516,-400.0,0.00036986,12]
[359539086,1746096661526,-400.0,0.00036986,12]
[359539088,1746096661535,-400.0,0.00036986,12]
[359539090,1746096661544,-400.0,0.00036986,12]
[359539092,1746096661554,-786.89,0.00036986,12]
[359539094,1746096661563,-640.11,0.00036986,12]
[359539096,1746096661574,-400.0,0.00036986,12]
[359539098,1746096661584,-417.64,0.00036986,12]
[359539100,1746096661595,-584.45,0.00036986,12]
[359539102,1746096661605,-316.59619132,0.00036986,12]
[359539104,1746096661615,-400.0,0.00036986,12]
[359539106,1746096661625,-400.0,0.00036986,12]
[359539108,1746096661635,-868.0,0.00036986,12]
[359539110,1746096661645,-716.32,0.00036986,12]
[359539112,1746096661655,-400.0,0.00036986,12]
[359539114,1746096661665,-642.27,0.00036986,12]
[359539116,1746096661675,-400.0,0.00036986,12]
[359539118,1746096661685,-400.0,0.00036986,12]
[359539120,1746096661695,-7263.1,0.00036986,12]
[359539122,1746096661705,-400.0,0.00036986,12]
[359539124,1746096661715,-474.85,0.00036986,12]
[359539126,1746096661724,-1279.87,0.00036986,12]
[359539128,1746096661735,-400.0,0.00036986,12]
[359539130,1746096661745,-400.0,0.00036986,12]
[359539132,1746096661755,-782.18,0.00036986,12]
[359539134,1746096661765,-613.22,0.00036986,12]
[359539136,1746096661775,-663.26,0.00036986,12]
[359539138,1746096661785,-1214.5,0.00036986,12]
[359539140,1746096661794,-721.89,0.00036986,12]
[359539142,1746096661803,-749.12,0.00036986,12]
[359539144,1746096661813,-653.13,0.00036986,12]
[359539146,1746096661822,-400.0,0.00036986,12]
[359539148,1746096661831,-400.0,0.00036986,12]
[359539150,1746096661841,-400.0,0.00036986,12]
[359539152,1746096661850,-2249.58,0.00036986,12]
[359539154,1746096661860,-400.0,0.00036986,12]
[359539156,1746096661870,-400.0,0.00036986,12]
[359539158,1746096661879,-400.0,0.00036986,12]
[359539160,1746096661888,-400.0,0.00036986,12]
[359539163,1746096661898,-1189.09,0.00036986,12]
[359539165,1746096661908,-7409.08,0.00036986,12]
[359539166,1746096661919,-400.0,0.00036986,12]
[359539169,1746096661929,-5309.34,0.00036986,2]
[359539170,1746096661939,-587.93,0.00036986,12]
[359539173,1746096661948,-400.0,0.00036986,12]
[359539175,1746096661958,-1353.42,0.00036986,12]
[359539176,1746096661967,-400.0,0.00036986,12]
[359539177,1746096661978,-406.49,0.00036986,12]
[359539178,1746096661988,-400.0,0.00036986,12]
[359539179,1746096661998,-400.0,0.00036986,12]
[359539180,1746096662008,-400.0,0.00036986,12]
[359539181,1746096662017,-400.0,0.00036986,12]
[359539182,1746096662027,-2637.7,0.00036986,12]
[359539183,1746096662042,-1022.26,0.00036986,12]
[359539184,1746096662052,-400.0,0.00036986,12]
[359539185,1746096662061,-586.11,0.00036986,12]
[359539186,1746096662071,-400.0,0.00036986,12]
[359539187,1746096662080,-4465.41,0.00036986,12]
[359539189,1746096662089,-5251.3,0.00036986,12]
[359539191,1746096662099,-2091.05,0.00036986,12]
[359539193,1746096662108,-3705.22,0.00036986,12]
[359539195,1746096662117,-400.0,0.00036986,12]
[359539197,1746096662127,-1883.95,0.00036986,12]
[359539199,1746096662137,-400.0,0.00036986,12]
[359539201,1746096662147,-791.98,0.00036986,12]
[359539203,1746096662156,-400.0,0.00036986,12]
[359539205,1746096662166,-400.0,0.00036986,12]
[359539207,1746096662176,-731.82,0.00036986,12]
[359539209,1746096662186,-400.0,0.00036986,12]
[359539211,1746096662199,-400.0,0.00036986,12]
[359539213,1746096662210,-400.0,0.00036986,12]
[359539215,1746096662220,-400.0,0.00036986,12]
[359539217,1746096662230,-400.0,0.00036986,12]
[359539219,1746096662240,-413.07,0.00036986,12]
[359539221,1746096662250,-400.0,0.00036986,12]
[359539223,1746096662261,-1782.62,0.00036986,12]
[359539225,1746096662270,-400.0,0.00036986,12]
[359539227,1746096662279,-400.0,0.00036986,12]
[359539229,1746096662289,-400.0,0.00036986,12]
[359539231,1746096662299,-2643.74,0.00036986,12]
[359539233,1746096662309,-400.0,0.00036986,12]
[359539236,1746096662319,-400.0,0.00036986,12]
[359539238,1746096662329,-400.0,0.00036986,12]
[359539240,1746096662338,-652.63,0.00036986,12]
[359539242,1746096662349,-400.0,0.00036986,12]
[359539244,1746096662359,-2256.5,0.00036986,12]
[359539246,1746096662368,-880.9,0.00036986,12]
[359539248,1746096662378,-1390.66,0.00036986,12]
[359539250,1746096662387,-316.96817003,0.00036986,12]
[359539252,1746096662397,-553.06,0.00036986,12]
[359539254,1746096662407,-746.24,0.00036986,12]
[359539256,1746096662416,-734.35,0.00036986,12]
[359539258,1746096662426,-400.0,0.00036986,12]
[359539260,1746096662435,-400.0,0.00036986,12]
[359539262,1746096662445,-264.74459845,0.00036986,12]
[359539264,1746096662454,-400.0,0.00036986,12]
[359539266,1746096662464,-400.0,0.00036986,12]
[359539268,1746096662474,-400.0,0.00036986,12]
[359539269,1746096662486,-400.0,0.00036986,12]
[359539271,1746096662497,-1827.75,0.00036986,12]
[359539274,1746096662507,-400.0,0.00036986,12]
[359539276,1746096662517,-400.0,0.00036986,12]
[359539278,1746096662527,-874.5,0.00036986,12]
[359539280,1746096662536,-400.0,0.00036986,12]
[359539281,1746096662546,-400.0,0.00036986,12]
[359539284,1746096662558,-400.0,0.00036986,12]
[359539286,1746096662569,-512.31265782,0.00036986,12]
[359539288,1746096662579,-400.0,0.00036986,12]
[359539289,1746096662589,-400.0,0.00036986,12]
[359539291,1746096662598,-400.0,0.00036986,12]
[359539293,1746096662608,-1392.23,0.00036986,12]
[359539295,1746096662618,-663.52,0.00036986,12]
[359539297,1746096662627,-400.0,0.00036986,12]
[359539299,1746096662637,-2892.0,0.00036986,12]
[359539301,1746096662646,-400.0,0.00036986,12]
[359539304,1746096662656,-1206.57,0.00036986,12]
[359539306,1746096662666,-685.28,0.00036986,12]
[359539308,1746096662675,-930.63,0.00036986,12]
[359539310,1746096662685,-1698.64,0.00036986,12]
[359539312,1746096662694,-1999.55,0.00036986,12]
[359539314,1746096662703,-1385.06,0.00036986,12]
[359539316,1746096662713,-993.2,0.00036986,12]
[359539318,1746096662723,-948.73,0.00036986,12]
[359539320,1746096662732,-400.0,0.00036986,12]
[359539322,1746096662741,-608.21,0.00036986,12]
[359539324,1746096662751,-400.0,0.00036986,12]
[359539326,1746096662761,-603.47,0.00036986,12]
[359539328,1746096662770,-404.65,0.00036986,12]
[359539330,1746096662779,-1600.93,0.00036986,12]
[359539332,1746096662789,-1512.75,0.00036986,12]
[359539334,1746096662798,-1715.43,0.00036986,12]
[359539336,1746096662808,-1068.22,0.00036986,12]
[359539338,1746096662817,-421.82,0.00036986,12]
[359539340,1746096662827,-400.0,0.00036986,12]
[359539342,1746096662836,-400.0,0.00036986,12]
[359539344,1746096662846,-1878.01,0.00036986,12]
[359539346,1746096662855,-520.36,0.00036986,7]
[359539348,1746096662865,-24151.59,0.00036986,12]
[359539350,1746096662875,-400.0,0.00036986,12]
[359539352,1746096662886,-967.92,0.00036986,12]
[359539354,1746096662896,-400.0,0.00036986,12]
[359539356,1746096662906,-618.55,0.00036986,12]
[359539358,1746096662916,-400.0,0.00036986,12]
[359539360,1746096662926,-400.0,0.00036986,12]
[359539362,1746096662936,-500.0,0.00036986,4]
[359539364,1746096662945,-160.0,0.00037,7]
[359539366,1746096662954,-160.0,0.00037,3]
[359539368,1746096662964,-160.0,0.00037,7]
[359539370,1746096662975,-160.0,0.00037,7]
[359539372,1746096662984,-160.0,0.00037,7]
[359539374,1746096662994,-421.4777418,0.00037,7]
[359539377,1746096663005,-2258.0,0.00037119,2]
[359539378,1746096663015,-5000.0,0.0003715,2]
[359539380,1746096663025,-1034.16791787,0.00037242,5]
[359539383,1746096663039,-902.74,0.0003726,12]
[359539384,1746096663049,-400.0,0.0003726,12]
[359539386,1746096663059,-278.07345352,0.0003726,12]
[359539389,1746096663070,-400.0,0.0003726,12]
[359539391,1746096663081,-590.31,0.0003726,12]
[359539393,1746096663091,-492.25,0.0003726,12]
[359539395,1746096663102,-400.0,0.0003726,12]
[359539397,1746096663112,-400.0,0.0003726,12]
[359539399,1746096663121,-801.35,0.0003726,12]
[359539401,1746096663132,-400.0,0.0003726,12]
[359539403,1746096663142,-400.0,0.0003726,12]
[359539404,1746096663152,-423.58,0.0003726,12]
[359539406,1746096663162,-432.05,0.0003726,12]
[359539408,1746096663174,-500.0,0.0003726,12]
[359539410,1746096663184,-400.0,0.0003726,12]
[359539412,1746096663195,-400.0,0.0003726,12]
[359539414,1746096663205,-428.13,0.0003726,12]
[359539431,1746096663356,-400.0,0.0003726,12]
[359539433,1746096663367,-400.0,0.0003726,12]
[359539435,1746096663377,-533.88,0.0003726,12]
[359539437,1746096663387,-400.0,0.0003726,12]
[359539439,1746096663397,-400.0,0.0003726,12]
[359539441,1746096663407,-634.75,0.0003726,12]
[359539443,1746096663417,-400.0,0.0003726,12]
[359539445,1746096663428,-400.0,0.0003726,12]
[359539447,1746096663438,-1060.8,0.0003726,12]
[359539449,1746096663447,-400.0,0.0003726,12]
[359539451,1746096663457,-400.0,0.0003726,12]
[359539453,1746096663467,-400.0,0.0003726,12]
[359539455,1746096663477,-5879.35,0.0003726,12]
[359539457,1746096663487,-400.0,0.0003726,12]
[359539459,1746096663497,-400.0,0.0003726,12]
[359539461,1746096663506,-400.0,0.0003726,12]
[359539463,1746096663515,-1242.1,0.0003726,12]
[359539465,1746096663525,-1506.06,0.0003726,12]
[359539467,1746096663534,-400.0,0.0003726,12]
[359539469,1746096663543,-400.0,0.0003726,12]
[359539471,1746096663554,-972.05,0.0003726,12]
[359539473,1746096663564,-400.0,0.0003726,12]
[359539475,1746096663575,-437.91,0.0003726,12]
[359539478,1746096663586,-400.0,0.0003726,12]
[359539479,1746096663595,-400.0,0.0003726,12]
[359539481,1746096663606,-974.81,0.0003726,12]
[359539483,1746096663616,-400.0,0.0003726,12]
[359539486,1746096663627,-922.16,0.0003726,12]
[359539488,1746096663636,-1363.87,0.0003726,12]
[359539490,1746096663646,-400.0,0.0003726,12]
[359539492,1746096663656,-400.0,0.0003726,12]
[359539494,1746096663666,-1130.45,0.0003726,12]
[359539496,1746096663676,-1035.43,0.0003726,12]
[359539497,1746096663686,-400.0,0.0003726,12]
[359539500,1746096663697,-544.71,0.0003726,12]
[359539502,1746096663707,-400.0,0.0003726,12]
[359539504,1746096663716,-400.0,0.0003726,12]
[359539505,1746096663726,-999.06,0.0003726,12]
[359539507,1746096663736,-400.0,0.0003726,12]
[359539509,1746096663746,-487.72,0.0003726,12]
[359539511,1746096663756,-400.0,0.0003726,12]
[359539513,1746096663767,-400.0,0.0003726,12]
[359539515,1746096663778,-687.88,0.0003726,12]
[359539518,1746096663792,-400.0,0.0003726,12]
[359539520,1746096663802,-400.0,0.0003726,12]
[359539522,1746096663812,-766.29,0.0003726,12]
[359539523,1746096663822,-400.0,0.0003726,12]
[359539526,1746096663832,-414.4,0.0003726,12]
[359539528,1746096663842,-437.32,0.0003726,12]
[359539530,1746096663851,-400.0,0.0003726,12]
[359539532,1746096663861,-400.0,0.0003726,12]
[359539533,1746096663871,-711.38,0.0003726,12]
[359539536,1746096663881,-780.7,0.0003726,12]
[359539538,1746096663890,-850.81,0.0003726,12]
[359539539,1746096663900,-1690.3,0.0003726,12]
[359539541,1746096663909,-400.0,0.0003726,12]
[359539543,1746096663919,-400.0,0.0003726,12]
[359539545,1746096663928,-424.99251723,0.0003726,12]
[359539547,1746096663938,-400.0,0.0003726,12]
[359539549,1746096663947,-400.0,0.0003726,12]
[359539552,1746096663958,-786.89,0.0003726,12]
[359539553,1746096663967,-640.11,0.0003726,12]
[359539556,1746096663977,-400.0,0.0003726,12]
[359539558,1746096663989,-417.64,0.0003726,12]
[359539560,1746096663999,-584.45,0.0003726,12]
[359539562,1746096664009,-400.0,0.0003726,12]
[359539564,1746096664019,-400.0,0.0003726,12]
[359539566,1746096664029,-868.0,0.0003726,12]
[359539568,1746096664045,-716.32,0.0003726,12]
[359539570,1746096664055,-400.0,0.0003726,12]
[359539572,1746096664066,-642.27,0.0003726,12]
[359539574,1746096664077,-400.0,0.0003726,12]
[359539576,1746096664088,-400.0,0.0003726,12]
[359539578,1746096664098,-7263.1,0.0003726,12]
[359539580,1746096664108,-400.0,0.0003726,12]
[359539582,1746096664128,-474.85,0.0003726,12]
[359539584,1746096664139,-1279.87,0.0003726,12]
[359539586,1746096664149,-671.773696,0.0003726,14]
[359539589,1746096664159,-400.0,0.0003726,12]
[359539591,1746096664169,-671.773696,0.0003726,14]
[359539593,1746096664179,-400.0,0.0003726,12]
[359539595,1746096664188,-782.18,0.0003726,12]
[359539597,1746096664199,-613.22,0.0003726,12]
[359539599,1746096664209,-663.26,0.0003726,12]
[359539600,1746096664219,-1214.5,0.0003726,12]
[359539603,1746096664229,-721.89,0.0003726,12]
[359539605,1746096664239,-749.12,0.0003726,12]
[359539607,1746096664248,-653.13,0.0003726,12]
[359539609,1746096664258,-400.0,0.0003726,12]
[359539611,1746096664268,-400.0,0.0003726,12]
[359539613,1746096664279,-400.0,0.0003726,12]
[359539614,1746096664289,-2249.58,0.0003726,12]
[359539616,1746096664299,-400.0,0.0003726,12]
[359539618,1746096664308,-400.0,0.0003726,12]
[359539620,1746096664319,-400.0,0.0003726,12]
[359539622,1746096664328,-400.0,0.0003726,12]
[359539624,1746096664338,-1189.09,0.0003726,12]
[359539627,1746096664348,-7409.08,0.0003726,12]
[359539629,1746096664358,-400.0,0.0003726,12]
[359539630,1746096664368,-5309.34,0.0003726,2]
[359539632,1746096664379,-587.93,0.0003726,12]
[359539634,1746096664389,-400.0,0.0003726,12]
[359539636,1746096664400,-151.0,0.0003726,14]
[359539638,1746096664411,-1353.42,0.0003726,12]
[359539640,1746096664422,-400.0,0.0003726,12]
[359539642,1746096664432,-406.49,0.0003726,12]
[359539644,1746096664442,-400.0,0.0003726,12]
[359539646,1746096664453,-400.0,0.0003726,12]
[359539649,1746096664464,-400.0,0.0003726,12]
[359539651,1746096664474,-400.0,0.0003726,12]
[359539653,1746096664484,-2637.7,0.0003726,12]
[359539655,1746096664496,-1022.26,0.0003726,12]
[359539657,1746096664507,-400.0,0.0003726,12]
[359539659,1746096664518,-586.11,0.0003726,12]
[359539660,1746096664528,-400.0,0.0003726,12]
[359539663,1746096664537,-4465.41,0.0003726,12]
[359539665,1746096664547,-5251.3,0.0003726,12]
[359539666,1746096664557,-2091.05,0.0003726,12]
[359539669,1746096664567,-3705.22,0.0003726,12]
[359539670,1746096664577,-400.0,0.0003726,12]
[359539671,1746096664588,-1883.95,0.0003726,12]
[359539672,1746096664598,-400.0,0.0003726,12]
[359539673,1746096664609,-791.98,0.0003726,12]
[359539674,1746096664619,-400.0,0.0003726,12]
[359539675,1746096664630,-400.0,0.0003726,12]
[359539676,1746096664640,-731.82,0.0003726,12]
[359539677,1746096664651,-400.0,0.0003726,12]
[359539678,1746096664661,-336.09893203,0.0003726,12]
[359539679,1746096664671,-400.0,0.0003726,12]
[359539680,1746096664681,-400.0,0.0003726,12]
[359539681,1746096664690,-151.0,0.0003726,14]
[359539682,1746096664701,-400.0,0.0003726,12]
[359539683,1746096664710,-413.07,0.0003726,12]
[359539685,1746096664719,-400.0,0.0003726,12]
[359539687,1746096664729,-151.0,0.0003726,14]
[359539689,1746096664738,-1782.62,0.0003726,12]
[359539691,1746096664748,-400.0,0.0003726,12]
[359539692,1746096664758,-400.0,0.0003726,12]
[359539695,1746096664768,-400.0,0.0003726,12]
[359539697,1746096664778,-2643.74,0.0003726,12]
[359539698,1746096664788,-400.0,0.0003726,12]
[359539700,1746096664797,-652.63,0.0003726,12]
[359539702,1746096664807,-400.0,0.0003726,12]
[359539704,1746096664817,-400.0,0.0003726,12]
[359539706,1746096664826,-2256.5,0.0003726,12]
[359539708,1746096664835,-880.9,0.0003726,12]
[359539710,1746096664844,-1390.66,0.0003726,12]
[359539713,1746096664855,-553.06,0.0003726,12]
[359539715,1746096664865,-746.24,0.0003726,12]
[359539717,1746096664875,-734.35,0.0003726,12]
[359539719,1746096664885,-400.0,0.0003726,12]
[359539721,1746096664895,-400.0,0.0003726,12]
[359539723,1746096664904,-400.0,0.0003726,12]
[359539725,1746096664914,-400.0,0.0003726,12]
[359539727,1746096664924,-400.0,0.0003726,12]
[359539729,1746096664934,-400.0,0.0003726,12]
[359539731,1746096664944,-1827.75,0.0003726,12]
[359539733,1746096664954,-220.72528717,0.0003726,12]
[359539735,1746096664963,-400.0,0.0003726,12]
[359539737,1746096664973,-874.5,0.0003726,12]
[359539739,1746096664982,-400.0,0.0003726,12]
[359539741,1746096664993,-400.0,0.0003726,12]
[359539743,1746096665003,-400.0,0.0003726,12]
[359539745,1746096665013,-400.0,0.0003726,12]
[359539747,1746096665023,-400.0,0.0003726,12]
[359539749,1746096665034,-400.0,0.0003726,12]
[359539751,1746096665044,-1392.23,0.0003726,12]
[359539753,1746096665053,-663.52,0.0003726,12]
[359539755,1746096665063,-400.0,0.0003726,12]
[359539757,1746096665072,-2892.0,0.0003726,12]
[359539760,1746096665083,-400.0,0.0003726,12]
[359539762,1746096665092,-1206.57,0.0003726,12]
[359539764,1746096665102,-685.28,0.0003726,12]
[359539766,1746096665111,-930.63,0.0003726,12]
[359539768,1746096665121,-1698.64,0.0003726,12]
[359539770,1746096665131,-1999.55,0.0003726,12]
[359539772,1746096665140,-1385.06,0.0003726,12]
[359539774,1746096665149,-993.2,0.0003726,12]
[359539776,1746096665159,-948.73,0.0003726,12]
[359539777,1746096665168,-400.0,0.0003726,12]
[359539780,1746096665178,-608.21,0.0003726,12]
[359539782,1746096665192,-477.285113,0.0003726,14]
[359539784,1746096665204,-400.0,0.0003726,12]
[359539786,1746096665214,-603.47,0.0003726,12]
[359539788,1746096665224,-404.65,0.0003726,12]
[359539790,1746096665234,-477.285113,0.0003726,14]
[359539792,1746096665245,-1600.93,0.0003726,12]